bitfinex/quotes_SOLUSD_20250326
["timestamp","ask_amount","ask_price","bid_price","bid_amount"]
[1742977128372,20.0,144.41,144.4,0.063]
[1742977128568,28.32841783,144.41,144.4,0.063]
[1742977131793,20.0,144.41,144.4,0.063]
[1742977139292,28.32841783,144.41,144.4,0.063]
[1742977140894,35.25311783,144.41,144.4,0.063]
[1742977141983,28.32841783,144.41,144.4,0.063]
[1742977143398,35.25311783,144.41,144.4,0.063]
[1742977144498,35.53744097,144.41,144.37,0.063]
[1742977144673,8.32841783,144.38,144.37,0.063]
[1742977145683,8.32841783,144.39,144.37,0.063]
[1742977145980,8.32841783,144.4,144.37,0.063]
[1742977147907,8.32841783,144.38,144.37,0.063]
[1742977148683,8.32841783,144.39,144.37,0.063]
[1742977152809,8.32841783,144.38,144.37,0.063]
[1742977153607,8.32841783,144.39,144.37,0.063]
[1742977154193,8.32841783,144.38,144.37,0.063]
[1742977159412,15.25451783,144.38,144.37,0.063]
[1742977160187,8.32841783,144.38,144.37,0.063]
[1742977163217,15.25451783,144.38,144.37,0.063]
[1742977165116,0.14216157,144.37,144.35,0.063]
[1742977165326,8.32841783,144.3,144.26,6.9315]
[1742977165532,8.32841783,144.3,144.25,82.0029]
[1742977165699,8.32841783,144.3,144.25,88.9351]
[1742977165903,8.32841783,144.3,144.26,6.9317]
[1742977166199,8.32841783,144.3,144.25,90.33131783]
[1742977166399,20.0,144.33,144.25,90.33131783]
[1742977166615,8.32841783,144.3,144.25,97.26361783]
[1742977167424,8.32841783,144.3,144.25,82.0029]
[1742977169094,8.32841783,144.3,144.25,90.33131783]
[1742977169720,8.32841783,144.29,144.25,82.0029]
[1742977170631,8.32841783,144.29,144.25,0.063]
[1742977171515,15.25881783,144.29,144.25,0.063]
[1742977172017,15.54314097,144.29,144.25,0.063]
[1742977172219,21.50314097,144.29,144.25,0.063]
[1742977174831,8.32841783,144.26,144.25,0.063]
[1742977176134,15.26031783,144.26,144.25,0.063]
[1742977177234,15.54464097,144.26,144.25,0.063]
[1742977177413,34.19428983,144.26,144.25,0.063]
[1742977178637,15.54464097,144.26,144.25,0.063]
[1742977180649,21.50464097,144.26,144.25,0.063]
[1742977182854,103.20464097,144.26,144.25,0.063]
[1742977183535,40.15428983,144.26,144.25,0.063]
[1742977183945,21.50464097,144.26,144.25,0.063]
[1742977185644,15.54464097,144.26,144.25,0.063]
[1742977185838,21.22031783,144.26,144.25,0.063]
[1742977186222,81.7,144.29,144.25,0.063]
[1742977186428,8.32841783,144.27,144.25,0.063]
[1742977187229,8.32841783,144.28,144.25,0.063]
[1742977189256,8.32841783,144.27,144.25,0.063]
[1742977192752,8.32841783,144.29,144.25,0.063]
[1742977193053,8.32841783,144.3,144.25,8.39141783]
[1742977193255,8.32841783,144.29,144.25,8.39141783]
[1742977193751,8.32841783,144.3,144.25,8.39141783]
[1742977194240,8.32841783,144.29,144.25,0.063]
[1742977195447,8.32841783,144.29,144.25,8.39141783]
[1742977196854,8.32841783,144.29,144.26,6.9319]
[1742977197650,8.32841783,144.3,144.26,6.9319]
[1742977198358,8.32841783,144.31,144.26,15.26031783]
[1742977198732,8.32841783,144.3,144.26,15.26031783]
[1742977199365,8.32841783,144.3,144.26,6.9319]
[1742977200135,8.35841783,144.3,144.26,6.9319]
[1742977200335,8.35841783,144.3,144.26,15.26031783]
[1742977200545,0.03,144.3,144.26,15.26031783]
[1742977202370,0.03,144.3,144.27,8.32841783]
[1742977202675,0.03,144.3,144.27,15.25961783]
[1742977203438,0.03,144.3,144.28,8.32841783]
[1742977203751,0.03,144.3,144.29,8.32841783]
[1742977204857,0.03,144.3,144.29,15.25881783]
[1742977209680,0.03,144.3,144.29,116.13268983]
[1742977210166,0.03,144.35,144.3,18.933972]
[1742977210367,0.03,144.35,144.33,8.32841783]
[1742977210544,0.03,144.35,144.32,8.32841783]
[1742977210741,8.35841783,144.35,144.3,81.9399]
[1742977210939,8.32841783,144.34,144.3,81.9399]
[1742977211867,15.25651783,144.34,144.3,81.9399]
[1742977212364,8.32841783,144.34,144.3,88.8698]
[1742977212740,15.25651783,144.34,144.3,88.8698]
[1742977213062,15.25651783,144.34,144.3,97.19821783]
[1742977213463,8.32841783,144.34,144.3,97.19821783]
[1742977214162,8.32841783,144.33,144.3,81.9399]
[1742977214369,8.32841783,144.32,144.28,13.6508]
[1742977214667,8.32841783,144.33,144.28,21.97921783]
[1742977214961,0.03,144.35,144.3,8.32841783]
[1742977215167,0.03,144.35,144.31,8.32841783]
[1742977215866,8.35841783,144.35,144.31,15.25751783]
[1742977217267,0.03,144.35,144.31,15.25751783]
[1742977219770,8.32841783,144.34,144.31,6.9291]
[1742977219973,0.03,144.35,144.28,95.5907]
[1742977219974,8.32841783,144.33,144.28,103.91911783]
[1742977220266,8.32841783,144.31,144.28,88.8706]
[1742977220461,8.32841783,144.32,144.28,88.8706]
[1742977221165,8.32841783,144.33,144.28,97.19901783]
[1742977222158,8.32841783,144.32,144.28,88.8706]
[1742977223951,8.32841783,144.32,144.28,6.9307]
[1742977224151,8.32841783,144.32,144.28,6.9937]
[1742977227069,8.32841783,144.33,144.28,15.32211783]
[1742977227271,20.0,144.33,144.29,8.32841783]
[1742977227678,28.32841783,144.33,144.28,15.32211783]
[1742977227877,8.32841783,144.32,144.28,6.9937]
[1742977228255,8.32841783,144.31,144.28,0.063]
[1742977228574,8.32841783,144.32,144.28,0.063]
[1742977229151,8.32841783,144.32,144.28,8.39141783]
[1742977229683,28.32841783,144.33,144.28,8.39141783]
[1742977230274,35.25701783,144.33,144.28,8.39141783]
[1742977230573,8.32841783,144.32,144.28,0.063]
[1742977231179,15.25751783,144.32,144.28,0.063]
[1742977231483,8.32841783,144.29,144.28,0.063]
[1742977231857,8.32841783,144.3,144.28,0.063]
[1742977234371,8.32841783,144.29,144.28,0.063]
[1742977237181,8.32841783,144.3,144.28,0.063]
[1742977237383,0.03,144.3,144.28,0.063]
[1742977237679,0.03,144.3,144.28,8.39141783]
[1742977237866,0.03,144.3,144.29,8.32841783]
[1742977238360,0.03,144.3,144.28,8.39141783]
[1742977238556,0.03,144.3,144.28,15.32221783]
[1742977239483,0.03,144.3,144.28,0.063]
[1742977239781,8.32841783,144.29,144.28,0.063]
[1742977240283,15.25881783,144.29,144.28,0.063]
[1742977242290,6.9304,144.29,144.28,0.063]
[1742977242581,15.25881783,144.29,144.28,0.063]
[1742977243383,8.32841783,144.29,144.28,0.063]
[1742977244079,15.25881783,144.29,144.28,0.063]
[1742977246287,8.32841783,144.29,144.28,0.063]
[1742977246487,15.25881783,144.29,144.28,0.063]
[1742977247885,8.32841783,144.29,144.28,0.063]
[1742977254400,0.03,144.3,144.28,0.063]
[1742977256692,0.03,144.3,144.28,8.39141783]
[1742977257788,0.03,144.3,144.29,6.9304]
[1742977263995,0.03,144.3,144.29,15.25881783]
[1742977266007,0.03,144.3,144.29,15.25881783]
[1742977267382,0.03,144.3,144.29,6.9304]
[1742977267583,0.03,144.3,144.29,15.25881783]
[1742977275803,0.0001,144.3,144.29,34.05062826]
[1742977278285,0.0001,144.3,144.29,34.19278983]
[1742977279586,0.0001,144.3,144.29,116.19278983]
[1742977281504,0.0001,144.3,144.29,118.05911297]
[1742977283897,0.03,144.35,144.31,0.14216157]
[1742977284203,0.03,144.35,144.34,8.32841783]
[1742977285804,0.03,144.35,144.34,15.25641783]
[1742977290210,0.03,144.35,144.33,6.9285]
[1742977290401,8.35841783,144.35,144.32,82.0]
[1742977290795,0.03,144.35,144.32,82.0]
[1742977291503,8.35841783,144.35,144.32,82.0]
[1742977292710,8.32841783,144.34,144.32,82.0]
[1742977294295,8.32841783,144.34,144.31,6.9292]
[1742977297312,0.03,144.35,144.31,15.25761783]
[1742977303317,8.35841783,144.35,144.31,15.25761783]
[1742977303812,0.03,144.35,144.31,15.25761783]
[1742977307018,8.35841783,144.35,144.31,15.25761783]
[1742977309526,8.35841783,144.35,144.31,6.9292]
[1742977310821,0.03,144.35,144.31,15.25761783]
[1742977315209,0.03,144.35,144.32,8.32841783]
[1742977315418,0.03,144.35,144.31,15.25761783]
[1742977319724,0.03,144.35,144.33,6.9285]
[1742977319926,0.03,144.35,144.34,8.32841783]
[1742977321132,0.03,144.35,144.33,15.25691783]
[1742977321316,0.03,144.35,144.33,6.9285]
[1742977322108,0.03,144.35,144.32,6.9289]
[1742977322511,8.35841783,144.35,144.32,6.9289]
[1742977322709,0.03,144.35,144.32,6.9289]
[1742977323320,8.32841783,144.34,144.31,82.0]
[1742977323506,8.32841783,144.34,144.3,6.9928]
[1742977323710,8.32841783,144.32,144.3,0.063]
[1742977323910,8.32841783,144.31,144.3,0.063]
[1742977325141,9.85181783,144.31,144.3,0.063]
[1742977325313,16.25791783,144.31,144.3,0.063]
[1742977325921,23.18741783,144.31,144.3,0.063]
[1742977331454,16.78131783,144.31,144.3,0.063]
[1742977334436,17.06564097,144.31,144.3,0.063]
[1742977334662,20.0,144.29,144.28,0.063]
[1742977334864,28.32841783,144.29,144.28,0.063]
[1742977335367,34.26841783,144.29,144.28,0.063]
[1742977335545,34.55274097,144.29,144.28,0.063]
[1742977335750,34.55274097,144.29,144.25,0.063]
[1742977335751,0.28432314,144.28,144.25,0.063]
[1742977335946,8.32841783,144.26,144.25,0.063]
[1742977336338,15.26031783,144.26,144.25,0.063]
[1742977336538,8.32841783,144.26,144.25,0.063]
[1742977336735,8.32841783,144.27,144.25,0.063]
[1742977336959,8.32841783,144.26,144.25,0.063]
[1742977338235,15.26031783,144.26,144.25,0.063]
[1742977343253,8.32841783,144.26,144.25,0.063]
[1742977343757,15.26031783,144.26,144.25,0.063]
[1742977346065,8.32841783,144.26,144.25,0.063]
[1742977350460,15.26031783,144.26,144.25,0.063]
[1742977351272,8.32841783,144.26,144.25,0.063]
[1742977351567,15.26031783,144.26,144.25,0.063]
[1742977355966,8.32841783,144.26,144.25,0.063]
[1742977356961,15.26031783,144.26,144.25,0.063]
[1742977365770,8.32841783,144.26,144.25,0.063]
[1742977366661,90.02841783,144.27,144.25,0.063]
[1742977367680,96.95981783,144.27,144.25,0.063]
[1742977368188,90.02841783,144.27,144.25,0.063]
[1742977370493,8.32841783,144.27,144.25,0.063]
[1742977371958,8.35841783,144.28,144.25,0.063]
[1742977373795,0.03,144.28,144.25,0.063]
[1742977374100,0.03,144.28,144.26,8.32841783]
[1742977374345,0.03,144.28,144.27,16.21291783]
[1742977374799,0.03,144.28,144.27,23.14431783]
[1742977375297,0.03,144.28,144.27,7.8845]
[1742977375501,0.03,144.28,144.25,88.9952]
[1742977375995,8.35841783,144.28,144.25,0.063]
[1742977376593,8.32841783,144.27,144.25,0.063]
[1742977376972,8.32841783,144.26,144.25,0.063]
[1742977378998,15.26031783,144.26,144.25,0.063]
[1742977379570,15.54464097,144.26,144.25,0.063]
[1742977380190,15.26031783,144.26,144.25,0.063]
[1742977380783,8.32841783,144.26,144.25,0.063]
[1742977382486,15.26031783,144.26,144.25,0.063]
[1742977382695,12.8716,144.27,144.25,0.063]
[1742977382882,8.32841783,144.26,144.25,0.063]
[1742977384197,8.35841783,144.28,144.25,0.063]
[1742977384388,0.03,144.28,144.25,0.063]
[1742977384585,0.03,144.28,144.25,6.9954]
[1742977384792,8.35841783,144.28,144.25,6.9954]
[1742977386897,0.03,144.28,144.25,6.9954]
[1742977388205,20.0,144.27,144.25,6.9954]
[1742977388394,0.03,144.28,144.25,6.9954]
[1742977388598,0.03,144.28,144.26,6.0706]
[1742977390509,0.03,144.28,144.26,13.002]
[1742977392481,0.03,144.28,144.26,21.33041783]
[1742977392802,0.03,144.28,144.27,8.32841783]
[1742977394107,0.03,144.28,144.27,28.70762826]
[1742977394406,8.35841783,144.35,144.28,18.79181043]
[1742977394610,8.35841783,144.35,144.29,21.19881783]
[1742977394787,8.32841783,144.34,144.29,21.19881783]
[1742977395987,8.35841783,144.35,144.3,8.32841783]
[1742977396602,0.03,144.35,144.31,6.9293]
[1742977396822,8.32841783,144.34,144.3,6.9298]
[1742977397697,8.32841783,144.34,144.29,21.19871783]
[1742977397888,8.32841783,144.33,144.29,12.8703]
[1742977398702,8.32841783,144.33,144.28,97.25911783]
[1742977398886,8.32841783,144.33,144.28,15.25911783]
[1742977399803,15.25701783,144.33,144.28,15.25911783]
[1742977400012,8.32841783,144.33,144.28,15.25911783]
[1742977400594,8.32841783,144.34,144.28,15.25911783]
[1742977401014,15.28601783,144.35,144.29,8.32841783]
[1742977401508,8.35841783,144.35,144.3,8.32841783]
[1742977401696,8.32841783,144.34,144.29,8.32841783]
[1742977401899,8.32841783,144.34,144.29,15.25851783]
[1742977402485,15.25651783,144.34,144.29,15.25851783]
[1742977402691,8.32841783,144.33,144.28,15.25921783]
[1742977402885,8.32841783,144.33,144.28,15.32221783]
[1742977404409,15.25701783,144.33,144.28,15.32221783]
[1742977404797,8.32841783,144.33,144.28,15.32221783]
[1742977405611,15.25701783,144.33,144.28,15.32221783]
[1742977406216,8.32841783,144.33,144.28,15.32221783]
[1742977407019,15.25701783,144.33,144.28,15.32221783]
[1742977407705,8.32841783,144.33,144.28,15.32221783]
[1742977409017,15.28661783,144.34,144.29,8.32841783]
[1742977409205,8.32841783,144.33,144.28,6.9938]
[1742977409519,15.25711783,144.33,144.28,15.32221783]
[1742977410119,8.32841783,144.33,144.28,15.32221783]
[1742977410306,15.28661783,144.34,144.29,8.32841783]
[1742977410816,0.03,144.34,144.31,8.32841783]
[1742977411006,0.03,144.34,144.32,8.32841783]
[1742977411836,0.03,144.34,144.33,6.9285]
[1742977412604,0.03,144.34,144.33,15.25691783]
[1742977412817,0.03,144.34,144.33,16.86421783]
[1742977413224,0.03,144.34,144.32,5.94]
[1742977414132,0.03,144.34,144.32,21.19741783]
[1742977415624,0.03,144.34,144.33,8.32841783]
[1742977416621,0.03,144.34,144.33,15.25691783]
[1742977424536,0.03,144.34,144.33,6.9285]
[1742977424740,0.03,144.34,144.33,15.25691783]
[1742977437837,0.03,144.34,144.32,5.94]
[1742977438040,8.35841783,144.34,144.29,6.9304]
[1742977438237,8.32841783,144.33,144.29,6.9304]
[1742977438446,8.32841783,144.32,144.28,6.9937]
[1742977439054,8.32841783,144.33,144.28,15.32211783]
[1742977439357,8.32841783,144.32,144.28,6.9937]
[1742977439550,8.32841783,144.31,144.28,0.063]
[1742977440161,8.32841783,144.3,144.28,0.063]
[1742977442763,8.32841783,144.31,144.28,0.063]
[1742977443845,8.32841783,144.32,144.28,0.063]
[1742977444259,8.32841783,144.31,144.28,0.063]
[1742977444662,8.32841783,144.33,144.28,0.063]
[1742977444855,90.05841783,144.34,144.29,8.32841783]
[1742977445363,8.35841783,144.34,144.29,8.32841783]
[1742977445974,8.35841783,144.34,144.3,6.93]
[1742977446954,8.32841783,144.32,144.28,0.063]
[1742977447267,8.32841783,144.31,144.28,0.063]
[1742977447663,8.32841783,144.32,144.28,6.9938]
[1742977450779,8.32841783,144.32,144.28,0.063]
[1742977452261,8.35841783,144.32,144.28,0.063]
[1742977456762,8.32841783,144.31,144.28,0.063]
[1742977457776,8.35841783,144.32,144.28,0.063]
[1742977459273,8.32841783,144.31,144.28,0.063]
[1742977462594,8.32841783,144.3,144.28,0.063]
[1742977463172,8.32841783,144.29,144.28,0.063]
[1742977466373,8.32841783,144.3,144.28,0.063]
[1742977477296,8.35841783,144.3,144.28,0.063]
[1742977478098,8.32841783,144.29,144.28,0.063]
[1742977480307,0.03,144.3,144.28,0.063]
[1742977480605,8.35841783,144.3,144.28,0.063]
[1742977482502,0.03,144.3,144.28,0.063]
[1742977483686,0.03,144.3,144.28,8.39141783]
[1742977484411,0.03,144.3,144.29,8.32841783]
[1742977485090,0.03,144.3,144.29,15.25881783]
[1742977486927,0.03,144.3,144.29,16.81191783]
[1742977489208,0.0001,144.3,144.29,35.46156669]
[1742977489723,0.03,144.34,144.3,18.64964886]
[1742977490019,0.0001,144.34,144.33,28.63166669]
[1742977490222,0.0001,144.34,144.33,34.57166669]
[1742977490804,0.0001,144.34,144.33,117.95682668]
[1742977491203,0.0001,144.34,144.33,124.88532668]
[1742977491618,8.35841783,144.43,144.33,148.45632668]
[1742977491829,0.03,144.43,144.4,8.32841783]
[1742977492314,0.03,144.43,144.41,8.32841783]
[1742977493314,0.03,144.43,144.41,15.25291783]
[1742977494013,0.03,144.43,144.42,8.32841783]
[1742977495516,0.03,144.43,144.41,15.25301783]
[1742977495918,0.03,144.43,144.42,8.32841783]
[1742977496491,0.03,144.43,144.42,15.25261783]
[1742977496719,0.03,144.43,144.42,8.32841783]
[1742977497717,0.03,144.43,144.41,15.25291783]
[1742977501819,0.03,144.43,144.4,8.32841783]
[1742977502799,0.03,144.43,144.4,15.25341783]
[1742977504704,0.03,144.43,144.41,8.32841783]
[1742977505105,0.03,144.43,144.41,15.25271783]
[1742977505308,0.03,144.43,144.42,8.32841783]
[1742977506501,0.03,144.43,144.42,15.25261783]
[1742977506700,0.03,144.43,144.42,33.90226669]
[1742977508320,0.03,144.43,144.42,15.25261783]
[1742977516028,0.03,144.43,144.42,16.63700542]
[1742977517036,0.03,144.43,144.42,35.28665428]
[1742977518014,0.03,144.45,144.43,18.64964886]
[1742977518221,0.03,144.45,144.44,14.26841783]
[1742977519022,0.03,144.45,144.44,21.19161783]
[1742977519415,0.03,144.45,144.44,39.84126669]
[1742977522938,0.03,144.45,144.44,121.84126669]
[1742977525123,0.0001,144.45,144.44,129.46726669]
[1742977533030,0.0001,144.45,144.44,103.19161783]
[1742977533230,0.0001,144.45,144.44,94.8632]
[1742977533940,0.0001,144.45,144.44,88.9232]
[1742977534530,0.0001,144.45,144.44,82.0]
[1742977534736,8.32851783,144.45,144.41,0.063]
[1742977534936,8.32841783,144.43,144.41,0.063]
[1742977535447,8.32841783,144.44,144.41,0.063]
[1742977539475,8.32851783,144.45,144.41,0.063]
[1742977539832,0.0001,144.45,144.41,8.39141783]
[1742977541749,0.0001,144.45,144.42,15.25261783]
[1742977542054,0.0001,144.45,144.43,8.32841783]
[1742977542353,0.0001,144.45,144.42,15.25261783]
[1742977543336,0.0001,144.45,144.42,6.9242]
[1742977546969,0.0001,144.45,144.42,15.25261783]
[1742977549258,8.32851783,144.45,144.41,6.9875]
[1742977551749,0.0001,144.45,144.41,15.31591783]
[1742977553463,0.0001,144.45,144.42,8.32841783]
[1742977554363,0.0001,144.45,144.44,6.9232]
[1742977555161,0.0001,144.45,144.44,15.25161783]
[1742977555367,0.0001,144.45,144.44,6.9232]
[1742977558239,0.0001,144.45,144.44,15.25161783]
[1742977562662,0.0001,144.45,144.44,33.90126669]
[1742977563455,0.0001,144.45,144.44,117.28538057]
[1742977563966,0.0001,144.46,144.44,117.28538057]
[1742977564169,0.0001,144.46,144.45,8.32841783]
[1742977564471,0.0001,144.46,144.45,108.97806669]
[1742977565067,0.0001,144.46,144.45,115.90086669]
[1742977578559,0.0001,144.46,144.45,117.28488736]
[1742977580075,0.0001,144.47,144.46,18.64964886]
[1742977580282,0.0001,144.47,144.46,108.97806669]
[1742977580462,0.0001,144.47,144.46,110.36178886]
[1742977580779,0.0001,144.47,144.46,117.28408886]
[1742977583482,0.0001,144.47,144.46,115.90036669]
[1742977584973,0.0001,144.47,144.46,88.9223]
[1742977586469,0.0001,144.47,144.46,97.25071783]
[1742977589495,0.0001,144.47,144.46,115.90036669]
[1742977595280,0.0001,144.47,144.46,97.25071783]
[1742977603400,0.0001,144.47,144.46,90.32841783]
[1742977603588,0.0001,144.47,144.46,82.0]
[1742977604608,0.0001,144.47,144.45,6.9226]
[1742977604904,0.0001,144.47,144.44,6.986]
[1742977605104,0.0001,144.47,144.44,15.31441783]
[1742977611312,0.0001,144.47,144.44,6.986]
[1742977614547,0.0001,144.47,144.44,0.063]
[1742977614719,8.32841783,144.46,144.44,0.063]
[1742977615109,8.32841783,144.45,144.44,0.063]
[1742977616521,15.25121783,144.45,144.44,0.063]
[1742977618623,8.32841783,144.45,144.44,0.063]
[1742977621026,15.25121783,144.45,144.44,0.063]
[1742977621603,8.32841783,144.45,144.44,0.063]
[1742977623126,15.25121783,144.45,144.44,0.063]
[1742977624126,8.32841783,144.45,144.44,0.063]
[1742977624325,15.25121783,144.45,144.44,0.063]
[1742977625923,48.56488915,144.45,144.44,0.063]
[1742977626706,50.22338915,144.45,144.44,0.063]
[1742977628924,50.22338915,144.45,144.41,0.063]
[1742977629230,8.32841783,144.42,144.41,0.063]
[1742977630232,15.25261783,144.42,144.41,0.063]
[1742977631030,15.25261783,144.42,144.34,6.928]
[1742977631210,8.32841783,144.36,144.34,6.928]
[1742977631910,8.32841783,144.36,144.33,6.9283]
[1742977632421,8.32841783,144.35,144.31,90.1812]
[1742977632622,8.32841783,144.34,144.29,31.63641783]
[1742977633412,5.44311708,144.38,144.3,6.9928]
[1742977633413,8.32841783,144.33,144.3,6.9928]
[1742977634128,8.32841783,144.34,144.3,6.9928]
[1742977634313,8.32841783,144.33,144.3,6.9928]
[1742977634503,8.32841783,144.33,144.3,0.063]
[1742977636035,8.32841783,144.32,144.3,0.063]
[1742977637312,8.32841783,144.31,144.3,0.063]
[1742977645136,15.25791783,144.31,144.3,0.063]
[1742977654028,20.0,144.29,144.28,0.063]
[1742977654350,28.32841783,144.29,144.28,0.063]
[1742977655636,35.25881783,144.29,144.28,0.063]
[1742977656147,5.92,144.33,144.28,0.063]
[1742977656347,8.32841783,144.29,144.28,0.063]
[1742977656732,6.9286,144.33,144.28,0.063]
[1742977656935,8.32841783,144.29,144.28,0.063]
[1742977658062,8.32841783,144.3,144.28,0.063]
[1742977668958,8.32841783,144.31,144.28,0.063]
[1742977669583,8.32841783,144.33,144.28,8.39141783]
[1742977669866,8.32841783,144.34,144.29,14.78541783]
[1742977670377,81.7,144.36,144.29,6.457]
[1742977670378,8.32841783,144.33,144.29,6.457]
[1742977671488,8.32841783,144.34,144.3,6.93]
[1742977671656,81.7,144.36,144.3,6.93]
[1742977671974,8.32841783,144.34,144.3,6.93]
[1742977672476,8.32841783,144.35,144.3,32.58341783]
[1742977672857,90.02841783,144.36,144.32,1.6169]
[1742977673075,88.6253,144.4,144.32,9.94531783]
[1742977673370,8.32841783,144.37,144.32,9.94531783]
[1742977673569,8.32841783,144.37,144.33,6.9285]
[1742977673777,8.32841783,144.38,144.33,15.25691783]
[1742977673956,8.32841783,144.38,144.34,6.2033]
[1742977674356,81.73,144.41,144.34,6.2033]
[1742977674556,8.32841783,144.38,144.34,6.2033]
[1742977674762,8.32841783,144.39,144.34,14.53171783]
[1742977674964,8.32841783,144.37,144.34,6.2033]
[1742977675183,8.32841783,144.36,144.33,6.9285]
[1742977677864,8.32841783,144.38,144.33,32.57831783]
[1742977678561,8.32841783,144.37,144.33,24.2499]
[1742977679369,8.35841783,144.38,144.33,32.57831783]
[1742977683478,8.35841783,144.38,144.33,24.2499]
[1742977684784,8.32841783,144.37,144.33,24.2499]
[1742977685673,8.35841783,144.38,144.33,32.57831783]
[1742977686479,0.03,144.38,144.34,8.32841783]
[1742977687765,0.03,144.38,144.35,6.9276]
[1742977688379,0.03,144.38,144.35,15.25601783]
[1742977688581,0.03,144.38,144.36,8.32841783]
[1742977688762,0.03,144.38,144.36,14.24841783]
[1742977689381,0.03,144.38,144.37,8.32841783]
[1742977689619,0.03,144.38,144.37,9.86411783]
[1742977689767,0.03,144.38,144.37,16.79071783]
[1742977696485,8.35841783,144.38,144.34,6.9278]
[1742977696672,8.32841783,144.36,144.34,6.9278]
[1742977696866,8.32841783,144.37,144.33,6.9283]
[1742977698882,8.35841783,144.38,144.33,15.25671783]
[1742977702389,0.03,144.38,144.34,8.32841783]
[1742977702773,8.35841783,144.38,144.33,32.57811783]
[1742977704994,8.35841783,144.38,144.33,15.25671783]
[1742977705200,8.32841783,144.37,144.33,6.9283]
[1742977708304,8.35841783,144.38,144.33,15.25671783]
[1742977712309,8.32841783,144.37,144.33,6.9283]
[1742977713607,8.35841783,144.37,144.33,6.9283]
[1742977714007,0.03,144.37,144.33,6.9283]
[1742977716386,8.32841783,144.36,144.32,12.8489]
[1742977716704,8.32841783,144.35,144.32,12.8489]
[1742977717607,8.32841783,144.36,144.32,12.8489]
[1742977718387,8.32841783,144.36,144.32,6.9289]
[1742977719907,0.03,144.37,144.32,6.9289]
[1742977719908,8.35841783,144.37,144.32,6.9289]
[1742977720412,8.35841783,144.37,144.32,15.25731783]
[1742977721209,8.27227483,144.37,144.32,15.25731783]
[1742977721709,8.27227483,144.37,144.32,21.17731783]
[1742977721911,8.27227483,144.37,144.32,12.8489]
[1742977723314,15.19887483,144.37,144.32,12.8489]
[1742977725115,8.27227483,144.37,144.32,12.8489]
[1742977725418,15.19897483,144.37,144.32,12.8489]
[1742977728089,8.32841783,144.36,144.32,5.92]
[1742977728302,8.32841783,144.36,144.32,12.849]
[1742977728819,15.25511783,144.37,144.32,21.17741783]
[1742977734113,15.25511783,144.37,144.32,12.849]
[1742977734719,15.25561783,144.36,144.32,12.849]
[1742977735914,8.32841783,144.36,144.32,12.849]
[1742977736620,15.25521783,144.37,144.32,12.849]
[1742977739508,8.32841783,144.37,144.32,12.849]
[1742977739905,8.35841783,144.37,144.32,12.849]
[1742977740105,15.28511783,144.37,144.32,12.849]
[1742977748130,15.28511783,144.37,144.32,5.92]
[1742977748331,15.28511783,144.37,144.32,12.849]
[1742977751634,8.32841783,144.33,144.31,0.063]
[1742977751938,8.32841783,144.32,144.31,0.063]
[1742977754639,15.25741783,144.32,144.31,0.063]
[1742977758221,8.32841783,144.32,144.31,0.063]
[1742977761052,15.25741783,144.32,144.31,0.063]
[1742977761850,8.32841783,144.32,144.31,0.063]
[1742977764056,81.7,144.35,144.31,0.063]
[1742977764235,8.32841783,144.33,144.31,0.063]
[1742977765931,8.32841783,144.32,144.31,0.063]
[1742977773176,8.32841783,144.33,144.31,0.063]
[1742977773373,8.32841783,144.34,144.31,0.063]
[1742977773553,8.32841783,144.35,144.31,0.063]
[1742977775172,8.32841783,144.35,144.31,6.9925]
[1742977778465,8.32841783,144.34,144.31,0.063]
[1742977781686,8.32841783,144.33,144.31,0.063]
[1742977783399,8.32841783,144.34,144.31,0.063]
[1742977785103,8.32841783,144.36,144.31,8.39141783]
[1742977785274,8.32841783,144.36,144.31,14.31141783]